bitfinex/quotes_BTCUSD_20251113
["timestamp","ask_amount","ask_price","bid_price","bid_amount"]
[1763063239356,0.00013938,99076.0,99075.0,0.56224727]
[1763063239570,0.00013938,99076.0,99075.0,0.36038]
[1763063239797,0.00013938,99076.0,99072.0,0.09816915]
[1763063240031,0.00013938,99076.0,99075.0,0.07813315]
[1763063240231,0.00013938,99076.0,99075.0,0.001]
[1763063240407,0.00013938,99076.0,99075.0,0.002]
[1763063240552,0.00013938,99076.0,99075.0,0.001]
[1763063240754,0.00013938,99076.0,99068.0,0.03577146]
[1763063240953,0.00013938,99076.0,99072.0,0.10016915]
[1763063241197,0.00013938,99076.0,99072.0,0.002]
[1763063241397,0.00013938,99076.0,99072.0,0.001]
[1763063241597,0.00013938,99076.0,99072.0,0.09916915]
[1763063241798,0.00013938,99076.0,99075.0,0.001]
[1763063242475,0.00013938,99076.0,99075.0,0.002]
[1763063242832,0.00013938,99076.0,99075.0,0.001]
[1763063242833,0.00184989,99076.0,99075.0,0.001]
[1763063243152,0.05010989,99076.0,99072.0,0.001]
[1763063243354,0.09816915,99083.0,99067.0,0.04655]
[1763063243514,0.02388461,99100.0,99067.0,0.04655]
[1763063243515,0.03388461,99100.0,99067.0,0.04655]
[1763063243838,0.09816915,99084.0,99075.0,0.001]
[1763063244510,0.02,99080.0,99075.0,0.001]
[1763063244646,0.0187941,99079.0,99075.0,0.001]
[1763063245048,0.0187941,99079.0,99032.0,0.19799915]
[1763063245049,0.01879573,99078.0,99032.0,0.03577146]
[1763063245277,0.03548,99033.0,99032.0,0.00013938]
[1763063245484,0.03597,99033.0,99032.0,0.00013938]
[1763063246113,0.05477332,99033.0,99032.0,0.00013938]
[1763063247140,0.05577332,99033.0,99032.0,0.00013938]
[1763063247317,0.05677332,99033.0,99032.0,0.00013938]
[1763063247520,0.05577332,99033.0,99032.0,0.00013938]
[1763063247881,0.05877332,99033.0,99032.0,0.00013938]
[1763063248289,0.05777332,99033.0,99032.0,0.00013938]
[1763063248492,0.06077332,99033.0,99032.0,0.00013938]
[1763063249137,0.05477332,99033.0,99032.0,0.00013938]
[1763063249347,0.05777332,99033.0,99032.0,0.00013938]
[1763063249560,0.05977332,99033.0,99032.0,0.00013938]
[1763063249766,0.05477332,99033.0,99032.0,0.00013938]
[1763063250217,0.05877332,99033.0,99006.0,0.20200795]
[1763063250448,0.03585,99007.0,99006.0,0.00013943]
[1763063250653,0.03621,99007.0,99006.0,0.00013943]
[1763063251056,0.002,99033.0,99015.0,0.06388]
[1763063251190,0.002,99033.0,99032.0,0.06388]
[1763063251570,0.002,99033.0,99032.0,0.26583492]
[1763063251757,0.002,99033.0,99032.0,0.20195492]
[1763063251758,0.004,99033.0,99032.0,0.20195492]
[1763063251958,0.004,99033.0,99032.0,0.52495492]
[1763063252156,0.002,99033.0,99032.0,0.52495492]
[1763063252380,0.09816915,99065.0,99049.0,0.20191965]
[1763063252603,0.09816915,99065.0,99050.0,0.04787]
[1763063252797,0.09816915,99065.0,99050.0,0.64845074]
[1763063253357,0.09816915,99065.0,99050.0,0.04787]
[1763063253565,0.02328,99064.0,99043.0,0.04787]
[1763063254554,0.02328,99064.0,99030.0,0.11007795]
[1763063254555,0.0495,99063.0,99036.0,0.04787]
[1763063254929,0.02,99060.0,99031.0,0.323]
[1763063255376,0.0495,99059.0,99031.0,0.323]
[1763063255605,0.0495,99059.0,99030.0,0.60058074]
[1763063255809,0.09816915,99050.0,99030.0,0.60058074]
[1763063256018,0.09816915,99050.0,99002.0,0.03577146]
[1763063256019,0.02303,99030.0,99002.0,0.03577146]
[1763063256230,0.02303,99030.0,98990.0,0.16384997]
[1763063256231,0.09816915,99019.0,98995.0,0.03577146]
[1763063256468,0.09816915,99019.0,98990.0,0.85927173]
[1763063256667,0.09816915,99018.0,98990.0,0.65723277]
[1763063256866,0.09816915,99018.0,98992.0,0.20203456]
[1763063257087,0.09816915,99018.0,98994.0,0.20203184]
[1763063257291,0.09816915,99018.0,98994.0,0.20203207]
[1763063257493,0.09816915,99018.0,98995.0,0.2020304]
[1763063257696,0.09816915,99018.0,98992.0,0.00013943]
[1763063257898,0.09816915,99018.0,98995.0,0.20202925]
[1763063258100,0.09816915,99018.0,98994.0,0.20203244]
[1763063258312,0.14766915,99018.0,98992.0,0.00013943]
[1763063258518,0.09816915,99018.0,98992.0,0.00013943]
[1763063258717,0.14766915,99018.0,98992.0,0.00013943]
[1763063259127,0.0495,99017.0,98992.0,0.00013943]
[1763063259331,0.09816915,99003.0,98992.0,0.00013943]
[1763063259966,0.03598,98993.0,98992.0,0.00013943]
[1763063260408,0.03598,98993.0,98992.0,0.00274254]
[1763063260908,0.03585,99016.0,99001.0,0.04551]
[1763063261121,0.09816915,99010.0,99001.0,0.04551]
[1763063261340,0.09816915,99010.0,98992.0,0.00013943]
[1763063261569,0.0495,99009.0,98992.0,0.00013943]
[1763063261793,0.03585,99016.0,98995.0,0.20202902]
[1763063262018,0.09816915,99010.0,98992.0,0.00013943]
[1763063262260,0.09816915,99010.0,98992.0,0.00113943]
[1763063262481,0.08535,99016.0,99000.0,0.60058074]
[1763063262482,0.03585,99016.0,99000.0,0.60058074]
[1763063262715,0.09816915,99013.0,99000.0,0.60058074]
[1763063262951,0.001,99009.0,99001.0,0.04787]
[1763063263178,0.09816915,99013.0,98993.0,0.20203388]
[1763063263393,0.09816915,99013.0,98995.0,0.24989959]
[1763063263604,0.09816915,99013.0,98995.0,0.04787]
[1763063264050,0.09816915,99013.0,99001.0,0.001]
[1763063264253,0.15288915,99013.0,99001.0,0.001]
[1763063264467,0.15288915,99013.0,98979.0,0.323]
[1763063264468,0.05472,99002.0,98979.0,0.323]
[1763063264686,0.09816915,98992.0,98968.0,0.03577146]
[1763063264901,0.02854,98979.0,98966.0,0.24995815]
[1763063265122,0.02854,98979.0,98969.0,0.20208306]
[1763063265363,0.02854,98979.0,98966.0,0.04787]
[1763063265792,0.02854,98983.0,98969.0,0.8026625]
[1763063266018,0.02854,98983.0,98969.0,0.60058074]
[1763063266436,0.02854,98983.0,98966.0,0.25095795]
[1763063266437,0.08535,98970.0,98966.0,0.001]
[1763063266657,0.04901,98967.0,98966.0,0.001]
[1763063267077,0.04901,98967.0,98946.0,0.04787]
[1763063267298,0.04999,98967.0,98946.0,0.04787]
[1763063267528,0.04999,98967.0,98966.0,0.00327815]
[1763063270797,0.05099,98967.0,98966.0,0.00327815]
[1763063271001,0.001,98967.0,98966.0,0.00327815]
[1763063271348,0.02854,98987.0,98959.0,0.06713815]
[1763063271552,0.002,98967.0,98960.0,0.04787]
[1763063271757,0.002,98967.0,98961.0,0.20209981]
[1763063271980,0.001,98967.0,98960.0,0.04787]
[1763063272382,0.02854,98987.0,98950.0,0.60058074]
[1763063272383,0.09493,98974.0,98950.0,0.60058074]
[1763063272911,0.09493,98983.0,98960.0,0.60058074]
[1763063273152,0.01878833,98982.0,98960.0,0.60058074]
[1763063273364,0.09493,98983.0,98950.0,0.60058074]
[1763063273573,0.11371826,98982.0,98950.0,0.60058074]
[1763063273758,0.02,98980.0,98950.0,0.61068685]
[1763063273891,0.09816915,98972.0,98950.0,0.60058074]
[1763063274292,0.19309915,98972.0,98950.0,0.60058074]
[1763063274712,0.09493,98971.0,98950.0,0.60058074]
[1763063274914,0.09493,98971.0,98946.0,0.00046508]
[1763063275214,0.02553,98947.0,98946.0,0.00046508]
[1763063277626,0.02553,98947.0,98946.0,0.00246508]
[1763063277998,0.02553,98947.0,98946.0,0.00046508]
[1763063278201,0.02553,98947.0,98946.0,0.00146508]
[1763063278683,0.02553,98947.0,98931.0,0.09816915]
[1763063278889,0.02553,98947.0,98931.0,0.09830826]
[1763063279433,0.02553,98947.0,98937.0,0.20214769]
[1763063279638,0.02553,98947.0,98939.0,0.20214349]
[1763063279912,0.04522,98954.0,98943.0,0.20213492]
[1763063280135,0.04522,98954.0,98938.0,0.09826]
[1763063280351,0.04859,98967.0,98953.0,0.07547]
[1763063280555,0.01878607,98966.0,98953.0,0.07547]
[1763063280756,0.04859,98967.0,98953.0,0.01502]
[1763063280868,0.04859,98967.0,98951.0,0.20211914]
[1763063281075,0.09816915,98957.0,98934.0,0.20215379]
[1763063281293,0.03999,98941.0,98931.0,0.00013911]
[1763063281689,0.04049,98946.0,98932.0,0.20215752]
[1763063281948,0.04049,98946.0,98935.0,0.20215239]
[1763063282151,0.04049,98946.0,98933.0,0.20215589]
[1763063282470,0.04049,98946.0,98945.0,0.00054514]
[1763063283998,0.04138,98946.0,98945.0,0.00054514]
[1763063284725,0.04049,98946.0,98945.0,0.00054514]
[1763063285124,0.02,98970.0,98945.0,0.00054514]
[1763063285125,0.323,98971.0,98954.0,0.06045]
[1763063285325,0.01884308,98970.0,98961.0,0.60058074]
[1763063285592,0.01884308,98969.0,98961.0,0.60058074]
[1763063285718,0.01884308,98968.0,98961.0,0.52558074]
[1763063285906,0.09006,98983.0,98958.0,0.60058074]
[1763063285907,0.01884308,98967.0,98958.0,0.60058074]
[1763063286111,0.09006,98983.0,98958.0,0.60058074]
[1763063286112,0.0188472,98966.0,98958.0,0.20210594]
[1763063286344,0.0188472,98965.0,98958.0,0.20210594]
[1763063286550,0.01884973,98964.0,98957.0,0.60058074]
[1763063286728,0.01884973,98963.0,98957.0,0.60058074]
[1763063286929,0.00046393,98966.0,98955.0,0.20211173]
[1763063287127,0.01885021,98965.0,98950.0,0.64645831]
[1763063287328,0.00046393,98966.0,98949.0,0.03577146]
[1763063287329,0.01885021,98964.0,98949.0,0.03577146]
[1763063287539,0.01885021,98964.0,98958.0,0.001]
[1763063287540,0.01885021,98963.0,98958.0,0.001]
[1763063287739,0.01885021,98963.0,98939.0,0.03577146]
[1763063287740,0.09816915,98959.0,98939.0,0.03577146]
[1763063287944,0.09816915,98959.0,98936.0,0.03577146]
[1763063287945,0.01885021,98958.0,98936.0,0.03577146]
[1763063288264,0.01885021,98957.0,98937.0,0.03577146]
[1763063288456,0.01885021,98956.0,98935.0,0.03577146]
[1763063288669,0.01885021,98955.0,98936.0,0.03577146]
[1763063288870,0.09941021,98954.0,98936.0,0.03577146]
[1763063289095,0.09941021,98954.0,98933.0,0.03577146]
[1763063289096,0.09816915,98943.0,98933.0,0.03577146]
[1763063289291,0.08056,98954.0,98915.0,0.14642125]
[1763063289292,0.01885021,98942.0,98931.0,0.03577146]
[1763063289503,0.09816915,98959.0,98933.0,0.03577146]
[1763063289504,0.01885021,98941.0,98933.0,0.03577146]
[1763063289676,0.01885021,98940.0,98939.0,0.20214286]
[1763063289906,0.04754,98963.0,98931.0,0.19144915]
[1763063289907,0.04754,98963.0,98951.0,0.20211977]
[1763063290099,0.01887528,98962.0,98946.0,0.06191146]
[1763063290330,0.01887528,98961.0,98948.0,0.03577146]
[1763063290489,0.04754,98963.0,98946.0,0.02614]
[1763063290490,0.01887528,98960.0,98957.0,0.0002336]
[1763063290734,0.09863308,98966.0,98958.0,0.20210439]
[1763063290735,0.01887528,98959.0,98958.0,0.20210439]
[1763063291077,0.001,98963.0,98962.0,0.20209777]
[1763063291302,0.00046393,98966.0,98965.0,0.20209164]
[1763063292151,0.01935776,98966.0,98965.0,0.20209164]
[1763063292666,0.00046393,98966.0,98965.0,0.20209164]
[1763063293005,0.00046393,98966.0,98963.0,0.05365059]
[1763063293223,0.01890577,98965.0,98963.0,0.05365059]
[1763063293426,0.00046393,98966.0,98963.0,0.05365059]
[1763063293631,0.01890479,98965.0,98963.0,0.25574608]
[1763063293841,0.00046393,98966.0,98963.0,0.05365059]
[1763063294043,0.00046393,98966.0,98961.0,0.05365059]
[1763063294044,0.04834,98964.0,98961.0,0.05365059]
[1763063294259,0.04834,98964.0,98950.0,0.323]
[1763063294260,0.01892031,98963.0,98959.0,0.05365059]
[1763063294496,0.01892031,98962.0,98958.0,0.05365059]
[1763063294705,0.04834,98964.0,98958.0,0.05365059]
[1763063294706,0.01892031,98961.0,98958.0,0.05365059]
[1763063294929,0.01892031,98960.0,98957.0,0.05388419]
[1763063295287,0.01892031,98959.0,98958.0,0.16885059]
[1763063295538,0.01892031,98959.0,98958.0,0.02192]
[1763063295746,0.01391031,98959.0,98958.0,0.02192]
[1763063296325,0.01391031,98959.0,98950.0,0.80270191]
[1763063296326,0.01391031,98959.0,98956.0,0.05411215]
[1763063296528,0.00046393,98966.0,98958.0,0.002]
[1763063296749,0.00046393,98966.0,98963.0,0.03607454]
[1763063296969,0.00046393,98966.0,98964.0,0.20209189]
[1763063297181,0.00046393,98966.0,98958.0,0.001]
[1763063297404,0.00046393,98966.0,98959.0,0.2021039]
[1763063297627,0.00046393,98966.0,98964.0,0.03606748]
[1763063297842,0.00046393,98966.0,98964.0,0.2020931]
[1763063298539,0.00046393,98966.0,98958.0,0.001]
[1763063298779,0.00046393,98966.0,98965.0,0.03606367]
[1763063299998,0.00046393,98966.0,98962.0,0.20209602]
[1763063300354,0.00046393,98966.0,98965.0,0.001]
[1763063301360,0.00046393,98966.0,98963.0,0.036057]
[1763063301561,0.00046393,98966.0,98952.0,0.04592364]
[1763063302146,0.00046393,98966.0,98965.0,0.001]
[1763063302345,0.00046393,98966.0,98952.0,0.04592364]
[1763063302346,0.00046393,98966.0,98963.0,0.20209493]
[1763063302572,0.00046393,98966.0,98956.0,0.20210983]
[1763063302914,0.00046393,98966.0,98963.0,0.20209514]
[1763063303064,0.00046393,98966.0,98964.0,0.20209301]
[1763063303229,0.00046393,98966.0,98960.0,0.20210084]
[1763063303430,0.00046393,98966.0,98965.0,0.001]
[1763063303632,0.00046393,98966.0,98950.0,0.60058074]
[1763063303838,0.09108,98965.0,98947.0,0.04646]
[1763063304079,0.09108,98965.0,98943.0,0.323]
[1763063304080,0.09816915,98964.0,98943.0,0.323]
[1763063304516,0.18924915,98964.0,98943.0,0.323]
[1763063304887,0.00046393,98966.0,98950.0,0.47881819]
[1763063305057,0.00046393,98966.0,98957.0,0.20210741]
[1763063305255,0.00046393,98966.0,98950.0,0.47881819]
[1763063305256,0.00046393,98966.0,98951.0,0.29540009]
[1763063305461,0.00046393,98966.0,98950.0,0.47881819]
[1763063305661,0.02,98980.0,98950.0,0.4889243]
[1763063305856,0.02013907,98980.0,98953.0,0.20211483]
[1763063306060,0.00013907,98980.0,98960.0,0.47881819]
[1763063306456,0.00013907,98980.0,98951.0,0.09328]
[1763063306704,0.02013907,98980.0,98951.0,0.09328]
[1763063307327,0.02013907,98980.0,98950.0,0.47881819]
[1763063307535,0.02013907,98980.0,98950.0,0.4889243]
[1763063307734,0.01893217,98979.0,98955.0,0.20211178]
[1763063307912,0.01893217,98978.0,98954.0,0.2021141]
[1763063308117,0.01893217,98977.0,98955.0,0.20211183]
[1763063308379,0.01893217,98976.0,98957.0,0.20210754]
[1763063308586,0.01893217,98975.0,98950.0,0.47881819]
[1763063308802,0.01893217,98974.0,98950.0,0.47881819]
[1763063308932,0.01893217,98973.0,98950.0,0.47881819]
[1763063309138,0.01893217,98972.0,98950.0,0.68093995]
[1763063309335,0.01893217,98971.0,98950.0,0.68093995]
[1763063309540,0.09816915,98968.0,98940.0,0.47881819]
[1763063309740,0.01893217,98967.0,98941.0,0.34438]
[1763063310164,0.00436,98990.0,98979.0,0.03614]
[1763063310364,0.04779,99023.0,98979.0,0.03614]
[1763063310365,0.04779,99037.0,99030.0,0.00999999]
[1763063310564,0.04792936,99037.0,99030.0,0.00999999]
[1763063310969,0.06497,99031.0,99010.0,0.00999999]
[1763063311174,0.00108919,99032.0,99001.0,0.20201621]
[1763063311175,0.06497,99011.0,99001.0,0.20201621]
[1763063311375,0.06497,99011.0,99000.0,0.00999999]
[1763063311577,0.00108919,99032.0,98998.0,0.00021734]
[1763063311578,0.11276,99001.0,98998.0,0.00021734]
[1763063311776,0.06497,98999.0,98998.0,0.00021734]
[1763063314768,0.38797,98999.0,98950.0,0.4889243]
[1763063314917,0.323,98999.0,98998.0,0.001]
[1763063315125,0.38797,98999.0,98998.0,0.001]
[1763063315358,0.38797,98999.0,98970.0,0.00999999]
[1763063315566,0.38797,98999.0,98950.0,0.01010611]
[1763063315567,0.11276,98971.0,98952.0,0.202118]
[1763063315777,0.11276,98971.0,98960.0,0.68091903]
[1763063315998,0.11276,98971.0,98970.0,0.00072655]
[1763063319027,0.43576,98971.0,98970.0,0.00072655]
[1763063320208,0.43576,98971.0,98925.0,0.05406708]
[1763063320209,0.323,98959.0,98925.0,0.05406708]
[1763063320399,0.06497,98928.0,98925.0,0.00046393]
[1763063320758,0.09816915,98931.0,98925.0,0.00046393]
[1763063320759,0.11276,98926.0,98925.0,0.00046393]
[1763063321128,0.323,98925.0,98910.0,0.0004]
[1763063321314,0.16313915,98911.0,98910.0,0.00013911]
[1763063321521,0.16313915,98911.0,98900.0,0.0004]
[1763063321711,0.06497,98901.0,98900.0,0.00053949]
[1763063322793,0.06497,98901.0,98866.0,0.03012085]
[1763063322981,0.04779,98878.0,98866.0,0.00013965]
[1763063323182,0.04779,98878.0,98870.0,0.20228386]
[1763063323367,0.04779,98878.0,98866.0,0.00013965]
[1763063323791,0.04779,98878.0,98877.0,0.2022715]
[1763063323992,0.323,98909.0,98877.0,0.2022715]
[1763063324209,0.04779,98885.0,98870.0,0.01011429]
[1763063324449,0.04779,98885.0,98876.0,0.2022718]
[1763063324602,0.04779,98885.0,98873.0,0.20227969]
[1763063324801,0.04779,98885.0,98874.0,0.2022757]
[1763063324993,0.04779,98885.0,98874.0,0.20227764]
[1763063325194,0.04779,98885.0,98870.0,0.47881819]
[1763063325394,0.04779,98871.0,98866.0,0.00013965]
[1763063325641,0.04779,98871.0,98869.0,0.20228622]
[1763063325774,0.09089,98884.0,98872.0,0.20228096]
[1763063325975,0.04779,98885.0,98867.0,0.09816915]
[1763063326209,0.04779,98885.0,98883.0,0.00225981]
[1763063326421,0.04779,98885.0,98873.0,0.20227901]
[1763063326633,0.04779,98885.0,98877.0,0.20226957]
[1763063326949,0.04779,98885.0,98876.0,0.20227227]
[1763063327153,0.04779,98901.0,98875.0,0.47881819]
[1763063327361,0.04779,98901.0,98866.0,0.00013965]
[1763063327362,0.04779,98876.0,98866.0,0.00013965]
[1763063327770,0.06497,98867.0,98866.0,0.00013965]
[1763063329867,0.06497,98867.0,98841.0,0.323]
[1763063329868,0.06497,98867.0,98841.0,0.27468965]
[1763063330065,0.06497,98861.0,98840.0,0.47891819]
[1763063330327,0.06497,98861.0,98840.0,0.68126529]
[1763063330528,0.06497,98861.0,98841.0,0.2023438]
[1763063330711,0.06497,98861.0,98846.0,0.20233479]
[1763063330918,0.06497,98861.0,98844.0,0.20233882]
[1763063331064,0.06497,98861.0,98841.0,0.20234518]
[1763063331264,0.06497,98861.0,98843.0,0.20233995]
[1763063331476,0.06497,98861.0,98840.0,0.47891819]
[1763063331675,0.06497,98861.0,98843.0,0.20234085]
[1763063331887,0.09089,98860.0,98840.0,0.47891819]
[1763063332122,0.09089,98860.0,98840.0,0.0001]
[1763063332310,0.09089,98860.0,98840.0,0.47891819]
[1763063332536,0.09089,98860.0,98859.0,0.0028839]
[1763063332749,0.15586,98860.0,98859.0,0.0028839]
[1763063334663,0.15586,98860.0,98859.0,0.0029339]
[1763063336935,0.09816915,98846.0,98822.0,0.09060305]
[1763063337146,0.06497,98841.0,98820.0,0.47881819]
[1763063337396,0.06497,98841.0,98810.0,0.48933862]
[1763063337597,0.06497,98841.0,98820.0,0.47881819]
[1763063337773,0.06497,98841.0,98840.0,0.00049402]
[1763063340593,0.04779,98845.0,98840.0,0.00049402]
[1763063340793,0.04779,98845.0,98830.0,0.47881819]
[1763063340992,0.04779,98845.0,98828.0,0.20237039]
[1763063341169,0.04779,98845.0,98832.0,0.20236302]
[1763063341370,0.04779,98845.0,98834.0,0.20235913]
[1763063341570,0.09809,98844.0,98832.0,0.20236272]
[1763063341872,0.09809,98844.0,98822.0,0.09816915]
[1763063341873,0.04779,98845.0,98822.0,0.09816915]
[1763063342225,0.19625915,98844.0,98821.0,0.09816915]
[1763063342648,0.09809,98843.0,98821.0,0.09816915]
[1763063342862,0.04718,98822.0,98816.0,0.20239621]
[1763063343041,0.04718,98822.0,98817.0,0.20239233]
[1763063343289,0.04718,98822.0,98810.0,0.48933862]
[1763063343490,0.04718,98822.0,98816.0,0.20239614]
[1763063343705,0.04718,98822.0,98816.0,0.20239554]
[1763063343887,0.04718,98822.0,98811.0,0.04341874]
[1763063344117,0.04718,98822.0,98820.0,0.20238773]
[1763063344325,0.04718,98822.0,98816.0,0.00046563]
[1763063344828,0.04718,98822.0,98819.0,0.20238942]
[1763063345266,0.04718,98822.0,98816.0,0.20285995]
[1763063345267,0.04718,98822.0,98817.0,0.20239235]
[1763063345461,0.04818,98822.0,98816.0,0.00046563]
[1763063345860,0.06051,98817.0,98816.0,0.00046563]
[1763063346075,0.04818,98822.0,98816.0,0.00046563]
[1763063346482,0.04818,98822.0,98821.0,0.00098822]
[1763063346701,0.04718,98822.0,98821.0,0.00098822]
[1763063346933,0.10923,98822.0,98821.0,0.00098822]
[1763063350905,0.2,98850.0,98821.0,0.00098822]
[1763063350906,0.09047,98835.0,98821.0,0.00098822]
[1763063351107,0.09047,98835.0,98816.0,0.00046563]
[1763063351311,0.09816915,98843.0,98820.0,0.47881819]
[1763063351312,0.323,98842.0,98820.0,0.47881819]
[1763063351572,0.47881819,98870.0,98836.0,0.20235496]
[1763063351788,0.47881819,98870.0,98820.0,0.47881819]
[1763063351789,0.323,98852.0,98820.0,0.47881819]
[1763063351987,0.001,98835.0,98833.0,0.2023602]
[1763063352132,0.001,98835.0,98831.0,0.2023651]
[1763063352335,0.001,98835.0,98832.0,0.20236264]
[1763063352539,0.001,98835.0,98828.0,0.20236994]
[1763063352540,0.09047,98846.0,98834.0,0.20235805]
[1763063352754,0.09047,98846.0,98835.0,0.20235671]
[1763063352961,0.09047,98846.0,98835.0,0.20235691]
[1763063353167,0.09047,98846.0,98837.0,0.20235282]
[1763063353365,0.09047,98846.0,98831.0,0.20236565]
[1763063353567,0.09047,98846.0,98836.0,0.20235456]
[1763063353850,0.02,98860.0,98832.0,0.2024136]
[1763063353851,0.323,98854.0,98839.0,0.20234837]
[1763063354052,0.06205,98833.0,98832.0,5e-05]
[1763063354716,0.06205,98833.0,98832.0,0.0001]
[1763063355177,0.06205,98833.0,98832.0,0.0011]
[1763063355618,0.06205,98833.0,98832.0,0.0001]
[1763063356496,0.06205,98833.0,98832.0,0.0011]
[1763063356936,0.06205,98833.0,98832.0,0.00180208]
[1763063357604,0.06205,98833.0,98832.0,0.00080208]
[1763063357824,0.0809741,98833.0,98832.0,0.00080208]
[1763063358485,0.02,98830.0,98792.0,0.05048534]
[1763063358687,0.09816915,98815.0,98790.0,0.47921819]
[1763063358964,0.09816915,98815.0,98796.0,0.20243657]
[1763063359173,0.13837,98814.0,98796.0,0.20243657]
[1763063359337,0.13837,98814.0,98790.0,0.4793579]
[1763063359527,0.09047,98813.0,98790.0,0.4793579]
[1763063359725,0.09047,98813.0,98790.0,0.00053971]
[1763063359926,0.09047,98813.0,98798.0,0.2024322]
[1763063360132,0.0479,98814.0,98790.0,0.00053971]
[1763063360314,0.0479,98814.0,98800.0,0.20242833]
[1763063360514,0.0479,98814.0,98802.0,0.20242505]
[1763063360896,0.0479,98814.0,98800.0,0.47881819]
[1763063361097,0.0479,98814.0,98798.0,0.09816915]
[1763063361098,0.0479,98814.0,98808.0,0.20241172]
[1763063361273,0.0479,98814.0,98809.0,0.20240936]
[1763063361509,0.0479,98814.0,98809.0,0.20240949]
[1763063361714,0.0479,98814.0,98809.0,0.20241019]
[1763063361918,0.0479,98814.0,98810.0,0.20240714]
[1763063362123,0.09816915,98823.0,98809.0,0.20240984]
[1763063362330,0.0479,98820.0,98800.0,0.47881819]
[1763063362946,0.0479,98820.0,98810.0,0.2024076]
[1763063363141,0.13837,98820.0,98800.0,0.47881819]
[1763063363327,0.13837,98820.0,98801.0,0.09816915]
[1763063363486,0.13837,98820.0,98790.0,0.00053971]
[1763063363487,0.0479,98801.0,98790.0,0.00053971]
[1763063363692,0.0479,98801.0,98790.0,0.4793579]
[1763063363933,0.0679,98820.0,98792.0,0.09816915]
[1763063364113,0.0679,98820.0,98790.0,0.4793579]
[1763063364114,0.20758008,98819.0,98799.0,0.20243076]
[1763063364347,0.18863915,98819.0,98798.0,0.20243324]
[1763063364555,0.09816915,98819.0,98818.0,0.00036414]
[1763063364759,0.11710861,98819.0,98818.0,0.00036414]
[1763063364932,0.16021915,98819.0,98818.0,0.00036414]
[1763063365136,0.17916242,98819.0,98818.0,0.00036414]
[1763063365554,0.17916242,98819.0,98799.0,0.20243068]
[1763063365727,0.17916242,98819.0,98804.0,0.2024205]
[1763063365728,0.16021915,98819.0,98804.0,0.2024205]
[1763063366085,0.16021915,98819.0,98804.0,0.20242081]
[1763063366287,0.13837,98820.0,98791.0,0.09816915]
[1763063366288,0.0479,98820.0,98800.0,0.47881819]
[1763063366633,0.11816915,98840.0,98800.0,0.47881819]
[1763063366634,0.0479,98837.0,98819.0,0.00134]
[1763063367074,0.0479,98837.0,98820.0,0.60349999]
[1763063367276,0.0479,98837.0,98811.0,0.04341874]
[1763063367478,0.0479,98837.0,98824.0,0.20237831]
[1763063367631,0.0479,98837.0,98811.0,0.04341874]
[1763063367836,0.0489,98837.0,98827.0,0.2023728]
[1763063368094,0.0489,98837.0,98828.0,0.20237159]
[1763063368269,0.04803919,98837.0,98827.0,0.20237329]
[1763063368475,0.04803919,98837.0,98822.0,0.20238269]
[1763063368669,0.04903919,98837.0,98823.0,0.09816915]
[1763063369008,0.05003919,98837.0,98825.0,0.20237726]
[1763063369220,0.04903919,98837.0,98824.0,0.20237919]
[1763063369348,0.04903919,98837.0,98829.0,0.2023679]
[1763063369770,0.04903919,98837.0,98827.0,0.20237384]
[1763063369990,0.04803919,98837.0,98828.0,0.20237122]
[1763063370217,0.00013919,98837.0,98833.0,0.20236154]
[1763063370403,0.00013919,98837.0,98835.0,0.20235602]
[1763063370916,0.00013919,98837.0,98831.0,0.20236465]
[1763063371136,0.323,98867.0,98831.0,0.20236465]
[1763063371137,0.02026,98850.0,98831.0,0.20236465]
[1763063371272,0.02072525,98850.0,98831.0,0.20236465]
[1763063371466,0.02072525,98850.0,98835.0,0.001]
[1763063371675,0.01894728,98849.0,98835.0,0.001]
[1763063371869,0.02072525,98850.0,98835.0,0.001]
[1763063372099,0.02072525,98850.0,98835.0,0.20335686]
[1763063372298,0.02072525,98850.0,98835.0,0.001]
[1763063372601,0.001,98849.0,98839.0,0.2023488]
[1763063372814,0.001,98849.0,98830.0,0.64691873]
[1763063373094,0.00046525,98850.0,98848.0,0.04843]
[1763063373259,0.00246525,98850.0,98848.0,0.04843]
[1763063373631,0.00146525,98850.0,98848.0,0.04843]
[1763063374064,0.1085,98849.0,98830.0,0.002]
[1763063374440,0.1085,98849.0,98823.0,0.09816915]
[1763063374864,0.1095,98849.0,98848.0,0.002]
[1763063375073,0.36904,98849.0,98848.0,0.002]
[1763063375408,0.45043876,98849.0,98848.0,0.002]
[1763063375562,0.45043876,98849.0,98809.0,0.00023413]
[1763063375563,0.2,98840.0,98809.0,0.00023413]
[1763063375772,0.53225915,98820.0,98809.0,0.00023413]
[1763063375976,0.43302876,98820.0,98809.0,0.00023413]
[1763063376181,0.41409,98820.0,98809.0,0.00023413]
[1763063376383,0.09109,98820.0,98809.0,0.00023413]
[1763063376871,0.11109,98820.0,98809.0,0.00023413]
[1763063377025,0.11109,98820.0,98819.0,0.00018919]
[1763063377230,0.11309,98820.0,98819.0,0.00018919]
[1763063378639,0.09309,98820.0,98819.0,0.00018919]
[1763063379392,0.09409,98820.0,98819.0,0.00018919]
[1763063379558,0.11409,98820.0,98819.0,0.00023919]
[1763063379768,0.11409,98820.0,98793.0,0.03001149]
[1763063379980,0.06246,98810.0,98793.0,0.03001149]
[1763063380350,0.04604,98794.0,98790.0,0.0004]
[1763063380549,0.04604,98794.0,98790.0,0.00053971]
[1763063384186,0.04604,98801.0,98790.0,0.00053971]
[1763063385042,0.04604,98809.0,98791.0,0.09901]
[1763063385348,0.04604,98809.0,98791.0,0.20244729]
[1763063385583,0.001,98801.0,98790.0,0.00053971]
[1763063386029,0.04604,98809.0,98793.0,0.00041631]
[1763063386227,0.04604,98809.0,98790.0,0.00053971]
[1763063386228,0.09669,98808.0,98790.0,0.00053971]
[1763063386814,0.09669,98808.0,98791.0,0.20244666]
[1763063387376,0.09669,98808.0,98790.0,0.00053971]
[1763063389141,0.04604,98809.0,98791.0,0.09901]
[1763063389655,0.04604,98809.0,98794.0,0.20244019]
[1763063389879,0.02863,98820.0,98792.0,0.04341874]
[1763063390091,0.09816915,98817.0,98792.0,0.04341874]
[1763063390297,0.09669,98833.0,98801.0,0.04341874]
[1763063390539,0.02690385,98869.0,98801.0,0.04341874]
[1763063390540,0.01042782,98868.0,98810.0,0.8059066]
[1763063390760,0.40999999,98870.0,98810.0,0.8059066]